fUST/lending_fUST_20241113
["ID","MTS","AMOUNT","RATE_DAILY","PERIOD"]
[342114594,1731462646865,-158.391686,0.00020961,2]
[342114596,1731462646875,-158.391686,0.00020961,2]
[342114598,1731462646887,-158.391686,0.00020961,2]
[342114600,1731462646900,-158.391686,0.00020961,2]
[342114602,1731462646909,-158.391686,0.00020961,2]
[342114603,1731462646919,-158.391686,0.00020961,2]
[342114605,1731462646929,-158.391686,0.00020961,2]
[342114606,1731462646939,-158.391686,0.00020961,2]
[342114607,1731462646949,-158.391686,0.00020961,2]
[342114608,1731462646959,-160.789959,0.00020961,2]
[342114609,1731462646970,-195.221803,0.00020961,2]
[342114610,1731462646981,-195.221803,0.00020961,2]
[342114611,1731462646993,-195.221803,0.00020961,2]
[342114612,1731462647002,-195.221803,0.00020961,2]
[342114613,1731462647012,-195.221803,0.00020961,2]
[342114614,1731462647021,-195.221803,0.00020961,2]
[342114615,1731462647030,-195.221803,0.00020961,2]
[342114616,1731462647040,-195.221803,0.00020961,2]
[342114617,1731462647049,-195.221803,0.00020961,2]
[342114618,1731462647060,-195.221805,0.00020961,2]
[342114619,1731462647069,-260.345517,0.00020961,2]
[342114620,1731462647078,-260.345517,0.00020961,2]
[342114621,1731462647088,-260.345517,0.00020961,2]
[342114622,1731462647098,-260.345517,0.00020961,2]
[342114623,1731462647108,-260.345517,0.00020961,2]
[342114624,1731462647119,-260.345517,0.00020961,2]
[342114625,1731462647129,-260.345517,0.00020961,2]
[342114626,1731462647144,-260.345517,0.00020961,2]
[342114627,1731462647153,-260.345517,0.00020961,2]
[342114628,1731462647166,-260.34551,0.00020961,2]
[342114629,1731462647176,-151.0,0.00020961,2]
[342114630,1731462647185,-151.0,0.00020961,2]
[342114631,1731462647194,-151.0,0.00020961,2]
[342114632,1731462647204,-151.0,0.00020961,2]
[342114633,1731462647213,-151.0,0.00020961,2]
[342114634,1731462647223,-252.982588,0.00020961,2]
[342114635,1731462647232,-151.0,0.00020961,2]
[342114636,1731462647242,-151.0,0.00020961,2]
[342114637,1731462647252,-151.0,0.00020961,2]
[342114638,1731462647263,-151.0,0.00020961,2]
[342114639,1731462647273,-151.0,0.00020961,2]
[342114640,1731462647283,-208.99236,0.00020961,2]
[342114641,1731462647293,-208.99236,0.00020961,2]
[342114642,1731462647305,-208.99236,0.00020961,2]
[342114643,1731462647314,-208.99236,0.00020961,2]
[342114644,1731462647324,-208.99236,0.00020961,2]
[342114645,1731462647334,-208.99236,0.00020961,2]
[342114646,1731462647344,-208.99236,0.00020961,2]
[342114647,1731462647354,-208.99236,0.00020961,2]
[342114648,1731462647363,-208.99236,0.00020961,2]
[342114649,1731462647373,-208.992358,0.00020961,2]
[342114650,1731462647382,-156.127232,0.00020961,2]
[342114651,1731462647395,-265.432002,0.00020961,2]
[342114652,1731462647404,-265.432002,0.00020961,2]
[342114653,1731462647413,-265.432002,0.00020961,2]
[342114654,1731462647423,-265.432002,0.00020961,2]
[342114655,1731462647432,-265.432002,0.00020961,2]
[342114656,1731462647442,-265.432002,0.00020961,2]
[342114657,1731462647451,-265.432002,0.00020961,2]
[342114658,1731462647460,-265.432002,0.00020961,2]
[342114659,1731462647470,-265.432002,0.00020961,2]
[342114660,1731462647480,-265.431996,0.00020961,2]
[342114661,1731462647489,-151.0,0.00020961,2]
[342114662,1731462647499,-151.0,0.00020961,2]
[342114663,1731462647508,-151.0,0.00020961,2]
[342114664,1731462647518,-151.0,0.00020961,2]
[342114665,1731462647527,-151.0,0.00020961,2]
[342114666,1731462647536,-151.0,0.00020961,2]
[342114667,1731462647546,-151.0,0.00020961,2]
[342114668,1731462647555,-187.315491,0.00020961,2]
[342114669,1731462647565,-187.315491,0.00020961,2]
[342114670,1731462647575,-187.315491,0.00020961,2]
[342114671,1731462647585,-187.315491,0.00020961,2]
[342114672,1731462647594,-187.315491,0.00020961,2]
[342114673,1731462647604,-187.315491,0.00020961,2]
[342114674,1731462647613,-187.315491,0.00020961,2]
[342114675,1731462647623,-187.315491,0.00020961,2]
[342114676,1731462647632,-187.315491,0.00020961,2]
[342114677,1731462647642,-187.315488,0.00020961,2]
[342114678,1731462647652,-325.073174,0.00020961,2]
[342114679,1731462647661,-325.073174,0.00020961,2]
[342114680,1731462647671,-325.073174,0.00020961,2]
[342114681,1731462647680,-325.073174,0.00020961,2]
[342114682,1731462647690,-325.073174,0.00020961,2]
[342114683,1731462647699,-325.073174,0.00020961,2]
[342114684,1731462647708,-325.073174,0.00020961,2]
[342114685,1731462647718,-325.073174,0.00020961,2]
[342114686,1731462647728,-325.073174,0.00020961,2]
[342114687,1731462647737,-325.07318208,0.00020961,2]
[342114688,1731462647747,-38515.70690391,0.00020961,2]
[342114689,1731462647756,-1000.0,0.00020964,2]
[342114690,1731462647765,-500.60323869,0.00020973,2]
[342114691,1731462647775,-500.4451637,0.00020973,2]
[342114692,1731462647784,-501.25400148,0.00020973,2]
[342114693,1731462647794,-240.14893643,0.00020973,2]
[342114694,1731462647803,-500.0,0.00020973,2]
[342114695,1731462647812,-600.54376901,0.00020973,2]
[342114696,1731462647821,-500.74054268,0.00020973,2]
[342114697,1731462647830,-501.48286692,0.00020973,2]
[342114698,1731462647840,-500.99455037,0.00020973,2]
[342114699,1731462647849,-500.0,0.00020973,2]
[342114700,1731462647858,-500.34629178,0.00020973,2]
[342114701,1731462647867,-501.06592868,0.00020973,2]
[342114702,1731462647875,-372.67977275,0.00020973,2]
[342114703,1731462647886,-500.43429681,0.00020973,2]
[342114704,1731462647897,-500.42886103,0.00020973,2]
[342114705,1731462647906,-500.82632374,0.00020973,2]
[342114706,1731462647915,-500.0,0.00020973,2]
[342114707,1731462647925,-400.0,0.00021,2]
[342114708,1731462647934,-152.168254,0.00021061,2]
[342114709,1731462647943,-151.0,0.00021061,2]
[342114710,1731462647952,-151.0,0.00021061,2]
[342114711,1731462647961,-151.0,0.00021061,2]
[342114712,1731462647970,-177.896373,0.00021061,2]
[342114713,1731462647979,-177.896373,0.00021061,2]
[342114714,1731462647989,-322.891847,0.00021061,2]
[342114715,1731462648001,-322.891855,0.00021061,2]
[342114716,1731462648012,-158.391686,0.00021061,2]
[342114717,1731462648021,-158.391688,0.00021061,2]
[342114718,1731462648031,-152.176637,0.00021062,2]
[342114719,1731462648040,-151.0,0.00021062,2]
[342114720,1731462648048,-151.0,0.00021062,2]
[342114721,1731462648058,-151.775854,0.00021062,2]
[342114722,1731462648067,-151.0,0.00021062,2]
[342114723,1731462648076,-160.25628,0.00021062,2]
[342114724,1731462648086,-151.0,0.00021062,2]
[342114725,1731462648095,-151.0,0.00021062,2]
[342114726,1731462648104,-152.790867,0.00021062,2]
[342114727,1731462648113,-151.0,0.00021062,2]
[342114728,1731462648122,-151.0,0.00021063,2]
[342114729,1731462648131,-151.0,0.00021063,2]
[342114730,1731462648140,-153.04407,0.00021063,2]
[342114731,1731462648150,-151.0,0.00021063,2]
[342114732,1731462648158,-152.256781,0.00021063,2]
[342114733,1731462648167,-177.896373,0.00021063,2]
[342114734,1731462648176,-177.896373,0.00021063,2]
[342114735,1731462648185,-151.0,0.00021064,2]
[342114736,1731462648194,-151.0,0.00021064,2]
[342114737,1731462648204,-151.0,0.00021064,2]
[342114738,1731462648213,-161.568559,0.00021064,2]
[342114739,1731462648222,-246.665693,0.00021064,2]
[342114740,1731462648231,-177.896373,0.00021064,2]
[342114741,1731462648359,-177.896373,0.00021064,2]
[342114742,1731462648369,-177.896373,0.00021064,2]
[342114743,1731462648379,-177.896373,0.00021064,2]
[342114744,1731462648388,-151.0,0.00021065,2]
[342114745,1731462648399,-273.81793,0.00021065,2]
[342114746,1731462648409,-151.0,0.00021065,2]
[342114747,1731462648418,-220.777574,0.00021065,2]
[342114748,1731462648428,-155.458797,0.00021065,2]
[342114749,1731462648439,-184.16549,0.00021065,2]
[342114750,1731462648448,-177.896373,0.00021065,2]
[342114751,1731462648458,-177.896371,0.00021065,2]
[342114752,1731462648467,-323.05032301,0.00021073,2]
[342114753,1731462648477,-302.16310524,0.00021073,2]
[342114754,1731462648487,-500.0,0.00021073,2]
[342114755,1731462648496,-151.0,0.00021087,2]
[342114756,1731462648506,-151.0,0.00021154,2]
[342114757,1731462648516,-151.0,0.00021163,2]
[342114758,1731462648525,-500.60446037,0.00021182,2]
[342114759,1731462648535,-6000.0,0.00021212,2]
[342114760,1731462648544,-152.559443,0.00021235,2]
[342114761,1731462648554,-151.0,0.0002124,2]
[342114762,1731462648563,-500.0,0.00021244,2]
[342114763,1731462648572,-500.0,0.00021244,2]
[342114764,1731462648582,-500.0,0.00021244,2]
[342114765,1731462648591,-502.57660052,0.00021273,2]
[342114766,1731462648600,-152.705562,0.00021283,2]
[342114767,1731462648609,-151.0,0.00021285,2]
[342114768,1731462648618,-420.0,0.00021301,2]
[342114769,1731462648628,-151.0,0.00021312,2]
[342114770,1731462648637,-151.0,0.00021387,2]
[342114771,1731462648650,-151.0,0.00021387,2]
[342114772,1731462648659,-151.0,0.00021387,2]
[342114773,1731462648669,-1000.0,0.000214,2]
[342114774,1731462648679,-214.15325,0.00021489,2]
[342114775,1731462648688,-3429.1305,0.00021489,2]
[342114776,1731462648697,-854.19125454,0.00021521,2]
[342114777,1731462648706,-503.58278516,0.00021521,2]
[342114778,1731462648715,-1000.0,0.00021521,2]
[342114779,1731462648724,-150.112233,0.000216,3]
[342114780,1731462648733,-504.21390397,0.00021621,2]
[342114781,1731462648742,-150.112233,0.000217,3]
[342114782,1731462648751,-1000.8304363,0.00021792,2]
[342114783,1731462648760,-1003.47062517,0.00021792,2]
[342114784,1731462648769,-1139.05247598,0.00021792,2]
[342114785,1731462648779,-400.0,0.000218,5]
[342114786,1731462648788,-150.112233,0.000218,4]
[342114787,1731462648797,-7339.84886146,0.00021817,7]
[342114788,1731462648806,-208.32448069,0.00021817,2]
[342114789,1731462648815,-766.22864927,0.00021832,2]
[342114790,1731462648825,-200.0,0.0002186,7]
[342114791,1731462648834,-400.0,0.000219,5]
[342114792,1731462648843,-3000.0,0.000219,2]
[342114793,1731462648852,-150.112233,0.000219,4]
[342114794,1731462648861,-150.0,0.000219,2]
[342114795,1731462648871,-615.0,0.000219,2]
[342114796,1731462648880,-461.953,0.000219,2]
[342114797,1731462648889,-1000.0,0.000219,2]
[342114798,1731462648900,-3000.0,0.0002191,2]
[342114799,1731462648909,-3139.13548566,0.0002191,2]
[342114800,1731462648919,-223.82518262,0.00021915,2]
[342114801,1731462648929,-4271.93955279,0.00021915,2]
[342114806,1731463138732,167.94044632,0.00027,60]
[342114808,1731463409233,180.670001,0.00013973,2]
[342114848,1731463832580,-431.53167396,0.00017832,2]
[342114929,1731463840436,-37.96596561,0.00017832,2]
[342114930,1731463840445,-1111.428898,0.00018157,2]
[342114931,1731463840455,-944.9438289,0.0001817,2]
[342114932,1731463840464,-243.4824022,0.00018194,2]
[342114933,1731463840473,-300.0,0.00018638,2]
[342114934,1731463840483,-140.51015866,0.00018639,2]
[342114942,1731463843799,-19851.95999889,0.00018639,2]
[342114943,1731463843811,-4887.52984245,0.00018639,2]
[342114944,1731463843821,-1111.428898,0.00018842,2]
[342114945,1731463843830,-2054.98106239,0.00018876,2]
[342114946,1731463843841,-1265.50555749,0.00018876,2]
[342114947,1731463843850,-164.401998,0.00018925,2]
[342114948,1731463843860,-164.401998,0.00018933,2]
[342114949,1731463843869,-164.401998,0.00018942,2]
[342114950,1731463843881,-164.401998,0.0001895,2]
[342114951,1731463843890,-158.01152059,0.00018959,2]
[342114962,1731463846571,-6.39047741,0.00018959,2]
[342114963,1731463846582,-164.401998,0.00018968,2]
[342114964,1731463846592,-164.401998,0.00018976,2]
[342114965,1731463846602,-164.401998,0.00018985,2]
[342114966,1731463846612,-164.401998,0.00018994,2]
[342114967,1731463846622,-164.401998,0.00019002,2]
[342114968,1731463846635,-164.401998,0.00019011,2]
[342114969,1731463846648,-164.401998,0.00019019,2]
[342114970,1731463846658,-173.703325,0.00019178,2]
[342114971,1731463846668,-1111.428898,0.00019527,2]
[342114972,1731463846679,-175.2085524,0.00019857,2]
[342114973,1731463846690,-300.0,0.00019999,2]
[342114974,1731463846701,-1169.27083333,0.0002,2]
[342114975,1731463846711,-1278.0,0.0002,2]
[342114976,1731463846720,-191.47,0.0002,2]
[342114977,1731463846731,-420.0,0.00020322,2]
[342114978,1731463846741,-180.670001,0.00020447,2]
[342114979,1731463846750,-3320.48661983,0.00020524,2]
[342114980,1731463846761,-9977.05143724,0.00020861,2]
[342115005,1731464110914,170.896594,0.00013973,2]
[342115013,1731464548285,150.0,0.00018986,15]
[342115015,1731464628486,161.2,0.00016,2]
[342115024,1731464816689,170.641455,0.00013973,2]
[342115026,1731464857189,6010.0,0.00027,60]
[342115056,1731465032684,-218.72259535,0.00018711,2]
[342115057,1731465032694,-226.20265517,0.000189,2]
[342115066,1731465038844,-2773.79734483,0.000189,2]
[342115067,1731465038854,-1797.1166633,0.00018901,2]
[342115068,1731465038864,-210.357121,0.00018969,2]
[342115069,1731465038874,-300.0,0.00019496,2]
[342115070,1731465038883,-300.0,0.00019496,2]
[342115071,1731465038892,-8316.97391599,0.00019497,2]
[342115072,1731465038902,-5361.75495488,0.00019746,2]
[342115073,1731465038914,-2955.21896111,0.00019746,2]
[342115074,1731465038923,-1169.27083333,0.0002,2]
[342115075,1731465038933,-2868.40672006,0.00020133,2]
[342115076,1731465038943,-245.1278803,0.00020173,2]
[342115077,1731465038953,-782.49722406,0.00020182,2]
[342115078,1731465038966,-24900.0,0.00020183,2]
[342115079,1731465038975,-8316.97391599,0.00020233,2]
[342115080,1731465038985,-179.42980011,0.00020347,2]
[342115081,1731465038994,-8316.97391599,0.00020355,2]
[342115082,1731465039008,-500.0,0.00020376,2]
[342115083,1731465039018,-500.0,0.00020376,2]
[342115084,1731465039027,-500.0,0.00020376,2]
[342115085,1731465039054,-594.17800578,0.00020376,2]
[342115086,1731465039064,-500.0,0.00020376,2]
[342115087,1731465039074,-500.0,0.00020376,2]
[342115088,1731465039088,-413.72525932,0.00020376,2]
[342115089,1731465039097,-463.09302102,0.00020376,2]
[342115090,1731465039107,-69318.08622723,0.00020377,2]
[342115091,1731465039116,-170.641455,0.00020447,2]
[342115092,1731465039125,-4314.87120694,0.0002066,7]
[342115093,1731465039135,-2091.50557395,0.00020807,2]
[342115116,1731465043809,-1169.27083333,0.0002,2]
[342115117,1731465043819,-6225.46834205,0.00020807,2]
[342115118,1731465043828,-7826.70368399,0.00021,5]
[342115119,1731465043837,-151.0,0.00021,2]
[342115120,1731465043847,-151.0,0.00021,2]
[342115121,1731465043856,-153.38799,0.00021,2]
[342115122,1731465043866,-151.0,0.00021,2]
[342115123,1731465043875,-151.0,0.00021,2]
[342115124,1731465043884,-151.0,0.00021,2]
[342115125,1731465043893,-468.00119488,0.00021076,2]
[342115126,1731465043903,-420.0,0.0002124,2]
[342115127,1731465043912,-535.66445844,0.00021401,2]
[342115129,1731465043921,-278.74768411,0.00021401,2]
[342115131,1731465043930,-500.0,0.00021401,2]
[342115133,1731465043939,-258.53637617,0.00021401,2]
[342115134,1731465043948,-169.80344155,0.00021401,2]
[342115135,1731465043960,-151.0,0.00021402,2]
[342115136,1731465043971,-151.0,0.00021402,2]
[342115137,1731465043980,-151.0,0.00021402,2]
[342115138,1731465043989,-211.7278857,0.00021452,2]
[342115139,1731465044009,-212.1428121,0.000215,2]
[342115140,1731465044018,-303.8520826,0.000215,2]
[342115141,1731465044027,-153.0,0.000215,2]
[342115142,1731465044036,-212.1428121,0.000215,2]
[342115143,1731465044045,-303.8520826,0.000215,2]
[342115144,1731465044055,-153.0,0.000215,2]
[342115145,1731465044064,-232.0,0.0002156,6]
[342115146,1731465044073,-1278.0,0.000216,4]
[342115147,1731465044083,-216.4736499,0.000216,2]
[342115148,1731465044093,-155.1629548,0.000216,2]
[342115149,1731465044101,-2868.40672003,0.00021602,2]
[342115150,1731465044110,-6000.0,0.00021817,2]
[342115151,1731465044119,-6078.72906071,0.00021817,2]
[342115152,1731465044131,-816.39251038,0.00021817,2]
[342115170,1731465046589,-3504.06072807,0.00021817,2]
[342115188,1731465681319,161.836153,0.00013973,2]
[342115245,1731466232901,-160.4018616,0.00017363,2]
[342115247,1731466232911,-300.0,0.0001848,2]
[342115249,1731466232921,-173.85250218,0.0001848,2]
[342115352,1731466238876,-126.14749782,0.0001848,2]
[342115353,1731466238886,-24880.0,0.00018481,2]
[342115354,1731466238896,-1279.344204,0.00018724,2]
[342115355,1731466238906,-207.00279329,0.00018825,2]
[342115356,1731466238922,-324.366189,0.00018844,2]
[342115357,1731466238932,-1213.5533357,0.00018925,2]
[342115358,1731466238942,-173.5711229,0.00019107,2]
[342115359,1731466238952,-174.199803,0.00019178,2]
[342115360,1731466238962,-1279.344204,0.00019409,2]
[342115361,1731466238971,-2620.7671091,0.000198,2]
[342115362,1731466238980,-1169.27083333,0.0002,2]
[342115363,1731466238990,-277.0,0.0002,2]
[342115364,1731466238999,-1279.344204,0.00020094,2]
[342115365,1731466239008,-420.0,0.00020154,2]
[342115366,1731466239017,-681.65120842,0.00020197,2]
[342115367,1731466239027,-8039.11260024,0.00020197,2]
[342115368,1731466239036,-8039.11260024,0.00020346,2]
[342115369,1731466239045,-160.06737727,0.00020347,2]
[342115370,1731466239055,-161.836153,0.00020447,2]
[342115371,1731466239069,-8039.11260024,0.00020632,2]
[342115372,1731466239080,-376.79440623,0.00020927,2]
[342115373,1731466239089,-514.60608159,0.00020927,2]
[342115374,1731466239099,-497.22946044,0.00020927,2]
[342115375,1731466239108,-500.0,0.00020927,2]
[342115376,1731466239118,-500.0,0.00020927,2]
[342115377,1731466239128,-500.0,0.00020927,2]
[342115378,1731466239137,-500.0,0.00020927,2]
[342115379,1731466239147,-500.0,0.00020927,2]
[342115380,1731466239156,-500.0,0.00020927,2]
[342115381,1731466239166,-500.0,0.00020927,2]
[342115382,1731466239175,-500.0,0.00020927,2]
[342115383,1731466239184,-500.0,0.00020927,2]
[342115384,1731466239194,-500.0,0.00020927,2]
[342115385,1731466239203,-500.0,0.00020927,2]
[342115386,1731466239212,-500.0,0.00020927,2]
[342115387,1731466239223,-500.0,0.00020927,2]
[342115388,1731466239232,-500.0,0.00020927,2]
[342115389,1731466239241,-500.0,0.00020927,2]
[342115390,1731466239250,-500.0,0.00020927,2]
[342115391,1731466239259,-500.0,0.00020927,2]
[342115392,1731466239269,-500.0,0.00020927,2]
[342115393,1731466239278,-446.93569513,0.00020927,2]
[342115394,1731466239287,-258.67438414,0.00020927,2]
[342115395,1731466239296,-500.0,0.00020927,2]
[342115396,1731466239305,-500.0,0.00020927,2]
[342115397,1731466239314,-500.0,0.00020927,2]
[342115398,1731466239323,-500.0,0.00020927,2]
[342115399,1731466239336,-500.0,0.00020927,2]
[342115400,1731466239345,-500.0,0.00020927,2]
[342115401,1731466239354,-500.0,0.00020927,2]
[342115402,1731466239363,-500.0,0.00020927,2]
[342115403,1731466239372,-500.0,0.00020927,2]
[342115404,1731466239381,-500.0,0.00020927,2]
[342115405,1731466239390,-500.0,0.00020927,2]
[342115406,1731466239399,-296.25160813,0.00020927,2]
[342115407,1731466239408,-8039.11260024,0.00020928,2]
[342115408,1731466239417,-591.30690899,0.00021,2]
[342115409,1731466239428,-500.0,0.0002105,2]
[342115410,1731466239437,-387.8951889,0.00021096,2]
[342115411,1731466239446,-153.726589,0.00021114,2]
[342115412,1731466239455,-168.260083,0.00021114,2]
[342115413,1731466239465,-161.640453,0.00021114,2]
[342115414,1731466239474,-154.119737,0.00021114,2]
[342115415,1731466239483,-151.0,0.00021114,2]
[342115416,1731466239492,-151.0,0.00021114,2]
[342115417,1731466239501,-151.0,0.00021114,2]
[342115418,1731466239511,-151.0,0.00021114,2]
[342115419,1731466239519,-173.103744,0.00021114,2]
[342115420,1731466239528,-151.0,0.00021114,2]
[342115421,1731466239538,-154.866098,0.00021114,2]
[342115422,1731466239546,-151.0,0.00021145,2]
[342115423,1731466239555,-151.0,0.00021145,2]
[342115424,1731466239565,-8039.11260024,0.00021199,2]
[342115425,1731466239574,-2620.76710905,0.00021319,2]
[342115426,1731466239587,-151.0,0.00021405,2]
[342115427,1731466239596,-151.0,0.00021405,2]
[342115428,1731466239605,-151.0,0.00021405,2]
[342115429,1731466239614,-151.0,0.00021476,2]
[342115430,1731466239623,-152.189894,0.00021476,2]
[342115431,1731466239632,-215.098697,0.00021476,2]
[342115432,1731466239642,-2571.848,0.00021489,2]
[342115433,1731466239651,-1000.0,0.00021598,2]
[342115434,1731466239660,-2000.0,0.000216,2]
[342115435,1731466239670,-2000.0,0.000216,3]
[342115436,1731466239679,-2000.0,0.000216,4]
[342115437,1731466239688,-151.0,0.000216,2]
[342115438,1731466239697,-151.0,0.000216,2]
[342115439,1731466239706,-151.0,0.000216,2]
[342115440,1731466239715,-151.0,0.000216,2]
[342115441,1731466239727,-8039.11260025,0.00021618,2]
[342115442,1731466239736,-151.0,0.00021618,2]
[342115443,1731466239747,-151.0,0.00021618,2]
[342115444,1731466239758,-2322.05591035,0.00021717,2]
[342115446,1731466239767,-177.951924,0.000218,3]
[342115448,1731466239776,-160.06737727,0.000218,2]
[342115449,1731466239785,-374.96512091,0.00021816,2]
[342115451,1731466239794,-195.12337887,0.00021816,2]
[342115453,1731466239803,-180.97546331,0.00021816,2]
[342115455,1731466239812,-468.86240908,0.00021816,2]
[342115457,1731466239822,-6000.0,0.00021817,2]
[342115459,1731466239833,-113629.78924475,0.00021817,2]
[342115473,1731466239959,-64200.00000003,0.00021817,2]
[342115491,1731466240119,-7914.75015689,0.00021817,2]
[342115494,1731466240130,-323.81791502,0.00021817,2]
[342115496,1731466240142,-1092.28,0.00021817,2]
[342115588,1731466243763,-984.03000556,0.00021817,2]
[342115644,1731466246792,-1169.27083333,0.0002,2]
[342115645,1731466246802,-151.0,0.00021618,2]
[342115646,1731466246812,-5433.18238675,0.00021817,2]
[342115649,1731466360720,162.56989,0.00013973,2]
[342115654,1731467039992,162.678965,0.00013973,2]
[342115704,1731467436203,465.59469519,0.00027,60]
[342115882,1731467444142,-167.43252247,0.00018,2]
[342115883,1731467444152,-291.688007,0.00019594,2]
[342115884,1731467444161,-138.63148071,0.0002,2]
[342115885,1731467444175,-1030.63935262,0.0002,2]
[342115886,1731467444184,-162.678965,0.00020807,2]
[342115887,1731467444193,-178.195,0.00020817,2]
[342115888,1731467444201,-1704.34007583,0.000217,2]
[342115889,1731467444213,-261.23525601,0.000217,2]
[342115890,1731467444222,-500.0,0.00021773,2]
[342115891,1731467444230,-505.11294544,0.00021773,2]
[342115892,1731467444240,-300.0,0.00021798,2]
[342115893,1731467444249,-300.0,0.00021798,2]
[342115894,1731467444258,-500.0,0.00021799,2]
[342115895,1731467444267,-260.39807588,0.00021799,2]
[342115896,1731467444277,-218.32915017,0.00021799,2]
[342115897,1731467444286,-273.29040242,0.00021799,2]
[342115898,1731467444295,-585.59443531,0.00021799,2]
[342115899,1731467444304,-500.0,0.00021799,2]
[342115900,1731467444323,-500.0,0.00021799,2]
[342115901,1731467444334,-199.58351202,0.00021799,2]
[342115902,1731467444345,-500.0,0.00021799,2]
[342115903,1731467444355,-500.0,0.00021799,2]
[342115904,1731467444367,-96.69192643,0.00021799,2]
[342115905,1731467444381,-403.30807357,0.00021799,2]
[342115906,1731467444391,-500.0,0.00021799,2]
[342115907,1731467444401,-500.0,0.00021799,2]
[342115908,1731467444411,-500.0,0.00021799,2]
[342115909,1731467444421,-500.0,0.00021799,2]
[342115910,1731467444431,-300.0,0.00021799,2]
[342115911,1731467444441,-500.0,0.00021799,2]
[342115912,1731467444451,-447.95285089,0.00021799,2]
[342115913,1731467444461,-325.86743841,0.00021799,2]
[342115914,1731467444471,-500.0,0.00021799,2]
[342115915,1731467444482,-182.27865311,0.00021799,2]
[342115916,1731467444492,-494.21794364,0.00021799,2]
[342115917,1731467444502,-454.43413895,0.000218,2]
[342115918,1731467444512,-6418.08547239,0.000218,2]
[342115919,1731467444524,-118266.94189026,0.000218,2]
[342115920,1731467444534,-6340.93944938,0.000218,2]
[342115922,1731467446934,-320.0,0.00021396,2]
[342115923,1731467446947,-1165.59002,0.00021396,2]
[342115955,1731467724501,163.175588,0.00013973,2]
[342115981,1731468068409,7523.0,0.00027,60]
[342116031,1731468524968,163.203355,0.00013973,2]
[342116085,1731468632768,-175.789679,0.00019645,2]
[342116086,1731468632779,-275.348916,0.00019919,2]
[342116087,1731468632788,-18.94507394,0.00019989,2]
[342116095,1731468638424,-281.05492606,0.00019989,2]
[342116096,1731468638434,-300.0,0.00019989,2]
[342116097,1731468638444,-409.91610472,0.00019989,2]
[342116098,1731468638454,-152.83040512,0.00019989,2]
[342116099,1731468638464,-271.99476121,0.00019989,2]
[342116100,1731468638473,-528.60604781,0.00019989,2]
[342116101,1731468638483,-47.38289576,0.00019989,2]
[342116102,1731468638501,-152.61710424,0.00019989,2]
[342116103,1731468638510,-302.95609263,0.0001999,2]
[342116104,1731468638519,-64144.42680317,0.0001999,2]
[342116116,1731468643174,-541.30328169,0.00019989,2]
[342116117,1731468643183,-60.92171831,0.0001999,2]
[342116118,1731468643194,-570.97538683,0.0001999,2]
[342116132,1731468646123,-381.19998,0.0001999,2]
[342118930,1731469262744,163.189655,0.00013973,2]
[342118932,1731469306648,255.0,0.00027,60]
[342118933,1731469339494,260.0,0.00016,2]
[342118947,1731469462739,283.0,0.00016,2]
[342118960,1731469705293,5658.0,0.00027,60]
[342119043,1731469838431,-582.41753839,0.00018843,2]
[342119304,1731469843514,-40.00000001,0.00018843,2]
[342119305,1731469843524,-275.3489178,0.00018861,2]
[342119306,1731469843533,-605.91555395,0.00019599,2]
[342119307,1731469843542,-42.66430224,0.00019973,2]
[342119308,1731469843553,-457.33569776,0.00019973,2]
[342119309,1731469843562,-300.0,0.00019989,2]